Cogmind - Beta 15 @@@ ROGUE MODE // 2025.05.29 @ 17:34:50 Player: mehbruh Result: Destroyed by Autobeam Turret with Autobeam Performance ------------- Evolutions (0) 0 Regions Visited (2) 400 Robots Destroyed (38) 190 Value Destroyed (860) 860 Prototype IDs (4) 80 Alien Tech Used (0) 0 Bonus (0) 0 TOTAL SCORE: 1530 Bonus ------- None Cogmind --------- Core Integrity 0/250 Matter 138/300 Energy 199/200 System Corruption 4% Temperature Cool (12) Movement Treading (160) Location -10/Subcaves Parts ------- > --- POWER (1) -------- Subdweller Power Source > --- PROPULSION (2) --- Light Treads Spiked Treads > --- UTILITY (2) ------ Disposable Heat Sink Small Storage Unit > --- WEAPON (2) ------- Subdweller Machine Gun Grenade Launcher > --- INVENTORY (8) ---- Improved Treads Subdweller Monowheel Large Matter Pod (150) Subdweller Laser Heavy Battle Rifle Subdweller Shrapnel Launcher Makeshift Hammer Scrap Shield Fragment (47) Peak State ------------ > --- POWER ------------ Subdweller Power Source > --- PROPULSION ------- Light Treads Spiked Treads > --- UTILITY ---------- Small Storage Unit Subdweller Optics > --- WEAPON ----------- Subdweller Machine Gun Makeshift Hammer > --- INVENTORY -------- Light Treads Improved Treads Large Matter Pod Subdweller Laser Assault Rifle Subdweller Machine Gun Grenade Launcher Scrap Shield Fragment [Rating: 15] Favorites ----------- Power Subdweller Power Source Engine Subdweller Power Source Propulsion Improved Treads Treads Improved Treads Utility Small Storage Unit Device Seismic Detector Storage Small Storage Unit Weapon Assault Rifle Energy Gun Subdweller Laser Ballistic Gun Assault Rifle Launcher Grenade Launcher Impact Weapon Makeshift Hammer Build | -11 -10 -10 ------- Run | Yrd Mat Sub Slots Evolved . | . . . Power . | . . . Propulsion . | . . . Utility . | . . . Weapon . | . . . Parts Attached 26 | 7 4 15 Power 4 | 1 1 2 Engine 4 | 1 1 2 Core . | . . . Reactor . | . . . Propulsion 6 | 2 2 2 Treads 6 | 2 2 2 Leg . | . . . Wheel . | . . . Hover . | . . . Flight . | . . . Utility 4 | 2 . 2 Device 3 | 1 . 2 Storage 1 | 1 . . Processor . | . . . Hackware . | . . . Protection . | . . . Artifact . | . . . Weapon 12 | 2 1 9 Energy Gun 1 | . . 1 Energy Cannon . | . . . Ballistic Gun 8 | 2 . 6 Ballistic Cannon . | . . . Launcher 2 | . 1 1 Special Weapon . | . . . Impact Weapon 1 | . . 1 Slashing Weapon . | . . . Piercing Weapon . | . . . Special Melee Weapon . | . . . Unidentified Prototypes . | . . . Parts Lost 5 | . . 5 Power . | . . . Propulsion 1 | . . 1 Utility 2 | . . 2 Weapon 2 | . . 2 Highest Loss Streak 3 | . . 3 To Critical Strikes 1 | . . 1 Average Backups 7 | 3 7 7 Power . | . 1 . Propulsion 2 | 1 3 2 Utility 1 | . 1 1 Weapon 2 | . 1 3 Tool/Special . | . . . Unused Backups 13 | . 8 5 Power 1 | . 1 . Propulsion 7 | . 5 2 Utility 2 | . 1 1 Weapon 3 | . 1 2 Tool/Special . | . . . Average Slot Usage (%) 97 | . 100 96 Engine 14 | . 14 14 Treads 27 | . 28 27 Device 11 | . 14 10 Storage 14 | . 14 14 Energy Gun 2 | . . 3 Ballistic Gun 23 | . 28 20 Launcher 1 | . . 2 Peak Build Rating 15 | 7 10 15 Average Rating 11 | 4 8 12 On Entrance 5 | . 7 10 Naked Turns . | . . . Heaviest Build 21 | 13 15 21 Greatest Support 46 | 40 46 46 Greatest Overweight (x) 1 | 1 . . Average Overweight (x) . | . . . Largest Inventory Capacity 8 | 8 8 8 Average Capacity 7 | 7 8 7 Most Carried 8 | 5 8 8 Average Carried 7 | 3 7 7 Final Capacity 8 | 8 8 8 Final Carried 8 | 5 8 8 Class Distribution -------------------- 98% | Mutant Dominant Class ---------------- Mutant | -10/Materials Mutant | -10/Subcaves Resources | -11 -10 -10 ----------- Run | Yrd Mat Sub Matter Collected 1404 | 262 479 663 Remotely . | . . . Salvage Created 1109 | 26 595 488 Parts 70 | 4 38 28 Haulers Intercepted 2 | . 2 . Recyclers Shooed 4 | . 4 . Parts Field Recycled . | . . . Retrieved Matter . | . . . Parts Self-Destructed 17 | . . 17 Prevented . | . . . Kills | -11 -10 -10 ------- Run | Yrd Mat Sub Combat Hostiles Destroyed 31 | . 12 19 Guns 24 | . 9 15 AOE 7 | . 3 4 Classes Destroyed 9 | 1 5 3 Worker 1 | . 1 . Tunneler 1 | 1 . . Hauler 2 | . 2 . Recycler 2 | . 2 . Turret 1 | . . 1 Swarmer 14 | . 6 8 Grunt 7 | . 6 1 Sentry 1 | . . 1 Subdweller 9 | . . 9 Best Kill Streak 5 | 1 5 4 Combat Bots Only 5 | . 5 4 Max Kills in Single Turn 3 | 1 3 2 Gunslinging 1 | . . 1 Exploded 3 | . 3 1 Melee . | . . . Uniques/NPCs Destroyed . | . . . Combat | -11 -10 -10 -------- Run | Yrd Mat Sub Hostile Shots Fired 134 | . 43 91 Missed 41 | . 10 31 Hits 93 | . 33 60 Projectile 93 | . 33 60 Critical Strikes 2 | . . 2 Damage Taken 1330 | . 354 976 Core 251 | . 56 195 Absorbed by Shields . | . . . Core Remaining (%) 100 | 100 . . Volleys Fired 113 | 1 42 70 Largest 2 | 2 2 2 Hottest 80 | 40 40 80 Shots Fired 193 | 2 82 109 Gun 171 | 2 81 88 Cannon . | . . . Launcher 22 | . 1 21 Special . | . . . Kinetic 169 | 2 81 86 Thermal 3 | . . 3 Explosive 21 | . 1 20 Electromagnetic . | . . . Robot Hit Streak 25 | 1 25 15 Robot Miss Streak 3 | . 3 2 Penetration Max . | . . . Secondary Targets 1 | . . 1 Max Gunslinging Chain 1 | . . 1 Shots Hit Robots 127 | 1 59 67 Core Hits 66 | 1 29 36 Critical Kills 1 | . 1 . Critical Parts Destroyed . | . . . Critical Strikes 1 | . 1 . Destroy 1 | . 1 . Melee Attacks 8 | . . 8 Impact 8 | . . 8 Slashing . | . . . Piercing . | . . . Sneak Attacks . | . . . Combat Hostiles . | . . . Follow-up Attacks . | . . . Damage Inflicted 2465 | 24 917 1524 Guns 1765 | 24 779 962 Cannons . | . . . Explosions 696 | . 134 562 Melee . | . . . Ramming 4 | . 4 . Kinetic 1723 | 24 779 920 Thermal 42 | . . 42 Explosive 696 | . 134 562 Electromagnetic . | . . . Impact . | . . . Slashing . | . . . Piercing . | . . . Highest Corruption 4 | . 4 4 Average Corruption 3 | . 3 4 Corruption Purged . | . . . Corruption Blocked . | . . . Effects 66 | . 15 51 Message Errors 15 | . 7 8 Matter Fused 14 | . 3 11 Heat Flow Errors 5 | . 1 4 Energy Discharges 6 | . . 6 Parts Rejected 1 | . . 1 Data Loss (minor) 8 | . 1 7 Data Loss (major) 4 | . 2 2 Misfires 4 | . . 4 Alerts 2 | . . 2 Weapon Failures 7 | . 1 6 Overload Shots . | . . . Overflow Damage . | . . . Projectiles . | . . . Explosions . | . . . Melee . | . . . Knockbacks . | . . . Impact . | . . . Kinetic . | . . . Secondary . | . . . Self-Inflicted Damage 22 | . . 22 Shots 2 | . . 2 Rammed 2 | . 2 . Targets Rammed 2 | . 2 . Kicked . | . . . Crushed . | . . . Highest Temperature 255 | . 247 255 Average Temperature 105 | . 102 107 Received Heat Transfer 291 | . 144 147 Siege Activations . | . . . Martial Activations . | . . . Shielding Activations . | . . . Robots Disrupted . | . . . Combat Hostiles . | . . . Robots Corrupted . | . . . Combat Hostiles . | . . . Parts Fried . | . . . Impact Corruptions . | . . . Robots Melted . | . . . Combat Hostiles . | . . . Parts Melted . | . . . Heat Transferred 50 | . . 50 Parts Sabotaged . | . . . Parts Stolen . | . . . Parts Stripped . | . . . Power Chain Reactions . | . . . Alert | -11 -10 -10 ------- Run | Yrd Mat Sub Maximum Alert Level . | . . . Low Security (%) 100 | 100 100 . Level 1 . | . . . Level 2 . | . . . Level 3 . | . . . Level 4 . | . . . Level 5 . | . . . High Security . | . . . Max Security . | . . . Peak Influence 141 | 5 141 . Initial 3 | . 3 . Average 39 | . 41 . Influence Increases 897 | 5 362 530 Destroy 0b10 Robot/C 460 | . 240 220 Destroy 0b10 Robot/NC 30 | 5 25 . Destroy Leader 54 | . 44 10 Successful Hack 14 | . 14 . Disable Machine 15 | . 15 . Destroy Structure 9 | . 9 . Lose Combat Pursuer 315 | . 15 300 Influence Decreases 660 | . 258 402 Entered New Map 55 | . 2 53 Time Decay 575 | . 256 319 Lost Part 30 | . . 30 Squads Dispatched 1 | . 1 . Investigation . | . . . Extermination . | . . . Reinforcement 1 | . 1 . Assault . | . . . Garrison . | . . . Intercept . | . . . Searches Triggered . | . . . Construction Impeded . | . . . Haulers Reinforced . | . . . Active Scanning Responses . | . . . Cargo Convoy Interrupts . | . . . Stealth | -11 -10 -10 --------- Run | Yrd Mat Sub Distress Signals 3 | . 3 . Communications Jammed . | . . . Distress Signals . | . . . Times Spotted 49 | . 22 27 Peak Tracking Total 4 | . 4 4 Tactical Retreats 6 | . 1 5 Traps | -11 -10 -10 ------- Run | Yrd Mat Sub Traps Triggered 2 | . 2 . Indirectly . | . . . Trap Hack Attempts . | . . . Triggered . | . . . Disarmed . | . . . Reprogrammed . | . . . Reused . | . . . Traps Extracted . | . . . Installed . | . . . Triggered . | . . . Machines | -11 -10 -10 ---------- Run | Yrd Mat Sub Machines Disabled 4 | . 1 3 Max in Single Turn 3 | . 1 3 Machines Repaired . | . . . Machines Dismantled . | . . . Machines Sabotaged . | . . . Overloaded Fab Kills . | . . . Hacking | -11 -10 -10 --------- Run | Yrd Mat Sub Machines Accessed 9 | . 9 . Terminals 8 | . 8 . Fabricators . | . . . Repair Stations 1 | . 1 . Recycling Units . | . . . Scanalyzers . | . . . Garrison Access . | . . . Total Hacks 27 | . 27 . Successful 16 | . 16 . Failed 11 | . 11 . Catastrophic . | . . . Database Lockouts . | . . . Manual 12 | . 12 . Terminals 25 | . 25 . Fabricators . | . . . Repair Stations 2 | . 2 . Recycling Units . | . . . Scanalyzers . | . . . Garrison Access . | . . . Terminal Hacks 13 | . 13 . Record 1 | . 1 . Robot Analysis 3 | . 3 . Prototype ID Bank 3 | . 3 . Branch Access Points 1 | . 1 . Locate Traps 3 | . 3 . Registered Components 1 | . 1 . Zone Layout 1 | . 1 . Fabricator Hacks . | . . . Repair Station Hacks 1 | . 1 . Scan Component 1 | . 1 . Recycling Unit Hacks . | . . . Scanalyzer . | . . . Garrison Access Hacks . | . . . Unauthorized Hacks 2 | . 2 . Terminals 2 | . 2 . Botnet 2 | . 2 . Fabricators . | . . . Repair Stations . | . . . Recycling Units . | . . . Scanalyzers . | . . . Garrison Access . | . . . Data Cores Recovered . | . . . Used . | . . . Hacking Detections 9 | . 9 . Full Trace Events . | . . . Feedback Events . | . . . Feedback Blocked . | . . . Robot Schematics Acquired . | . . . Robots Built . | . . . Authchips . | . . . Time . | . . . Total Robot Build Rating . | . . . Part Schematics Acquired . | . . . Parts Built . | . . . Authchips . | . . . Time . | . . . Total Part Build Rating . | . . . Parts Repaired . | . . . Time . | . . . Parts Recycled . | . . . Recycled Matter . | . . . Retrieved Matter . | . . . Retrieved Components . | . . . Parts Scanalyzed . | . . . Part Schematics Acquired . | . . . Parts Damaged . | . . . Bothacking | -11 -10 -10 ------------ Run | Yrd Mat Sub Used RIF Installer . | . . . Robots Hacked . | . . . Non-combat . | . . . Combat . | . . . Robot Hacks Applied . | . . . Relay Couplers Released . | . . . Fabnet Peak Effective % . | . . . Robots Rewired . | . . . Allies Hacked . | . . . Hacks Repelled . | . . . Allies | -11 -10 -10 -------- Run | Yrd Mat Sub Total Allies . | . . . Largest Group . | . . . Highest-Rated Group . | . . . Highest-Rated Ally . | . . . Total Orders . | . . . Ally Attacks . | . . . Total Damage . | . . . Kills . | . . . Allies Corrupted . | . . . Allies Melted . | . . . Intel | -11 -10 -10 ------- Run | Yrd Mat Sub Active Infowar (turns) 1232 | 4 1193 35 Optics 3 | . . 3 Seismic 1229 | 4 1193 32 Robot Analysis Total 3 | . 3 . Derelict Logs Recovered 2 | . . 2 Drone Launches . | . . . Drone Recoveries . | . . . Exploration | -11 -10 -10 ------------- Run | Yrd Mat Sub Turns Passed 3453 | 59 1193 2201 Spaces Moved 1858 | 34 618 1206 Core 13 | 13 . . Treads 1845 | 21 618 1206 Legs . | . . . Wheels . | . . . Hover . | . . . Flight . | . . . Fastest Speed 50 | 50 160 160 Average Speed 159 | 123 160 160 Slowest Speed 160 | 160 160 160 Overloaded Moves . | . . . Propulsion Burnouts . | . . . Robots Hopped . | . . . Potential Cave-ins . | . . . Cave-ins Triggered . | . . . Exploration Rate (%) 50 | 4 95 51 Regions Visited 2 Branch Regions 1 Pre-discovered Areas 2 | . . 2 Known Exits Taken . | . . . Unknown Exits Taken 2 | 1 1 . Scrap Searched 14 | . . 14 Spaces Dug 31 | . . 31 Terrain Destroyed 79 | . 6 73 Melee 3 | . . 3 Projectile . | . . . AOE 76 | . 6 70 Terrain Rammed . | . . . Walls Destroyed . | . . . Machines Disabled . | . . . Actions | -11 -10 -10 --------- Run | Yrd Mat Sub Total 2149 | 46 743 1360 Wait 77 | . 59 18 Move 1856 | 33 617 1206 Hop . | . . . Pick Up 26 | 5 9 12 Fast Attach 13 | 7 . 6 Attach 5 | . . 5 Detach . | . . . Swap 24 | . 5 19 Drop 25 | . 9 16 Fire 113 | 1 42 70 Melee 8 | . . 8 Ram . | . . . Kick . | . . . Crush 2 | . 2 . Escape Stasis . | . . . Rewire . | . . . Trap . | . . . Miscellaneous . | . . . Route ------- -11/Scrapyard -10/Materials (discovered 6 exits: [*Mat x3] / *Min x2 / [*Sub]) -10/Subcaves (discovered 1 exit: [*Rec]) History --------- Turn | Location | Event 37 | -11/Scrapyard | Discovered new exit (range 12) 60 | -11/Scrapyard | Entered Materials 114 | -10/Materials | Discovered new exit (range 11) 290 | -10/Materials | Discovered new exit (range 11) 315 | -10/Materials | Build established: Mutant 450 | -10/Materials | Discovered new exit (range 7) 476 | -10/Materials | Identified exit to Mines 629 | -10/Materials | Discovered new exit (range 7) 780 | -10/Materials | Discovered new exit (range 14) 1253 | -10/Materials | Entered Subcaves 1254 | -10/Subcaves | Approached by a straggling Scientist 1381 | -10/Subcaves | A swath of the cavern ceiling suddenly collapsed 1629 | -10/Subcaves | Core integrity fell below 50% 1671 | -10/Subcaves | Lost 3 parts (1n2w) 1773 | -10/Subcaves | Learned location of Zion (-7) 1773 | -10/Subcaves | Met a Zionite searching for "candidates" 1965 | -10/Subcaves | Core integrity fell below 20% 2216 | -10/Subcaves | Ambushed by Subdwellers from Twisted Machinery 2463 | -10/Subcaves | Shifting Twisted Machinery released Sub. Shrapnel Launcher 2481 | -10/Subcaves | Shifting Twisted Machinery released Shrapnel Trap 2834 | -10/Subcaves | Disturbed a concealed Subdweller 3379 | -10/Subcaves | Discovered new exit (range 13) 3454 | -10/Subcaves | Destroyed by Autobeam Turret with Autobeam Last Messages --------------- 03011_ System corrupted: Heat flow error (+134). 03031_ System corrupted: Energy discharge (-42). 03054_ A5V|ES9/73 370UD|F26N2F 03096_ Dropped Sub. Machine Gun. 03107_ System corrupted: Energy discharge (-52). 03142_ System corrupted: Substantial component data lost. 03195_ 5U-GZF(u) tweaks Twisted Machinery. 03228_ System corrupted: Energy discharge (-80). 03244_ System corrupted: Heat flow error (+219). 03321_ System corrupted: FCS attempts to trigger Hvy. Battle Rifle. 03321_ System corrupted: Hvy. Battle Rifle misfires. 03364_ F<9LEAPAHED